bitfinex/quotes_SOLUSD_20250904
["timestamp","ask_amount","ask_price","bid_price","bid_amount"]
[1756946425618,36.72,211.45,211.4,4.73032744]
[1756946425820,36.72,211.44,211.41,0.7]
[1756946426115,36.72,211.44,211.42,0.7]
[1756946426493,36.72,211.44,211.4,0.70000001]
[1756946426718,40.67960696,211.44,211.4,0.70000001]
[1756946427019,3.95960696,211.41,211.4,1e-08]
[1756946427229,40.67960696,211.41,211.4,1e-08]
[1756946427530,39.25433119,211.41,211.4,1e-08]
[1756946428425,39.94433119,211.41,211.4,1e-08]
[1756946430853,36.72,211.44,211.4,0.70000001]
[1756946431014,36.72,211.44,211.41,0.7]
[1756946431822,2.53433119,211.45,211.42,0.7]
[1756946432017,2.53433119,211.45,211.4,4.73036449]
[1756946432018,0.06,211.46,211.43,0.7]
[1756946432213,36.72,211.45,211.43,0.7]
[1756946433212,0.06,211.46,211.44,3.23433119]
[1756946433718,0.06,211.46,211.44,0.7]
[1756946434835,0.06,211.46,211.45,0.7]
[1756946438352,0.06,211.46,211.44,4.72933107]
[1756946438521,0.06,211.46,211.44,5.42933107]
[1756946439433,0.06,211.46,211.44,4.72933107]
[1756946439611,0.06,211.46,211.45,0.7]
[1756946441446,0.06,211.46,211.42,26.0]
[1756946441731,0.06,211.46,211.44,0.7]
[1756946442553,0.06,211.46,211.43,4.72964551]
[1756946442740,0.73,211.46,211.41,7.26431407]
[1756946442929,0.73,211.46,211.41,7.98431407]
[1756946443128,0.73,211.46,211.42,0.72]
[1756946443438,0.06,211.46,211.43,0.72]
[1756946446062,0.06,211.46,211.44,0.72]
[1756946446357,0.06,211.46,211.44,3.25433119]
[1756946446728,0.06,211.46,211.45,3.25433119]
[1756946447237,0.06,211.46,211.45,7.9835816]
[1756946447551,0.06,211.46,211.45,5.44925041]
[1756946447745,0.06,211.46,211.45,7.9835816]
[1756946454161,0.06,211.46,211.45,21.86349875]
[1756946454340,0.06,211.48,211.47,13.87991715]
[1756946454542,0.06,211.48,211.47,42.41424834]
[1756946454752,0.06,211.48,211.47,43.13424834]
[1756946454949,0.06,211.48,211.47,45.02886054]
[1756946455154,0.06,211.48,211.47,30.42894339]
[1756946455351,0.06,211.48,211.47,28.53433119]
[1756946455555,0.06,211.48,211.47,29.25433119]
[1756946455960,0.06,211.48,211.47,28.53433119]
[1756946456261,0.06,211.48,211.47,33.26313432]
[1756946456656,0.06,211.48,211.47,33.98313432]
[1756946457065,0.06,211.48,211.47,33.26313432]
[1756946457484,0.06,211.48,211.47,30.72880313]
[1756946458581,0.06,211.48,211.47,26.0]
[1756946459075,0.06,211.48,211.45,7.98353657]
[1756946459462,0.67,211.47,211.43,4.75965364]
[1756946459681,0.67,211.46,211.43,0.03]
[1756946460184,0.67,211.45,211.43,0.03]
[1756946460682,0.67,211.44,211.43,0.03]
[1756946461385,3.20433119,211.44,211.43,0.03]
[1756946462158,4.7885831,211.48,211.43,0.03]
[1756946462159,2.53433119,211.46,211.43,0.03]
[1756946462370,0.67,211.44,211.43,0.03]
[1756946462575,3.20433119,211.44,211.43,0.03]
[1756946464576,7.29488148,211.47,211.43,0.75]
[1756946464760,7.29488148,211.47,211.43,0.03]
[1756946464961,0.67,211.46,211.43,0.03]
[1756946465585,2.53433119,211.47,211.43,0.75]
[1756946465771,2.53433119,211.46,211.43,0.03]
[1756946465973,3.20433119,211.46,211.43,0.03]
[1756946466274,0.67,211.45,211.43,0.03]
[1756946466579,3.98433119,211.48,211.43,0.75]
[1756946466762,2.53433119,211.46,211.43,0.03]
[1756946467081,2.53433119,211.44,211.43,0.03]
[1756946467485,3.20433119,211.44,211.43,0.03]
[1756946471886,7.93380527,211.44,211.43,0.03]
[1756946473088,44.63380527,211.44,211.43,0.03]
[1756946474094,46.52976451,211.44,211.43,0.03]
[1756946475798,88.94401285,211.44,211.43,0.03]
[1756946476884,33.57975646,211.44,211.43,0.03]
[1756946477081,82.95141241,211.44,211.43,0.03]
[1756946478288,96.54700642,211.44,211.43,0.03]
[1756946478481,26.0,211.41,211.4,1e-08]
[1756946478703,28.53433119,211.41,211.4,1e-08]
[1756946478877,29.51865433,211.41,211.4,1e-08]
[1756946479193,66.21865433,211.41,211.4,1e-08]
[1756946479496,68.11515292,211.41,211.4,1e-08]
[1756946479675,72.84529813,211.41,211.4,1e-08]
[1756946482109,13.87991715,211.4,211.39,0.03]
[1756946482280,16.41424834,211.4,211.39,0.03]
[1756946482488,65.93433119,211.4,211.39,0.03]
[1756946484104,1.89649859,211.41,211.39,0.03]
[1756946484288,2.53433119,211.4,211.39,0.71]
[1756946484491,36.7,211.4,211.39,0.71]
[1756946484693,2.53433119,211.44,211.39,0.71]
[1756946484898,36.7,211.43,211.39,3.24433119]
[1756946485098,36.7,211.43,211.4,0.68]
[1756946485304,36.7,211.43,211.41,0.68]
[1756946485603,2.53433119,211.44,211.42,0.68]
[1756946485928,0.06,211.46,211.43,0.68]
[1756946486110,39.23433119,211.45,211.43,0.68]
[1756946487084,36.7,211.44,211.4,7.26463004]
[1756946487711,36.7,211.44,211.41,0.68]
[1756946488504,36.7,211.44,211.39,7.29489231]
[1756946488700,39.23433119,211.44,211.42,0.68]
[1756946489082,36.7,211.44,211.43,0.68]
[1756946490082,0.06,211.46,211.43,0.68]
[1756946490289,36.76,211.46,211.43,5.40963113]
[1756946490604,0.06,211.46,211.44,0.68]
[1756946490800,0.06,211.46,211.44,4.63846124]
[1756946491294,0.06,211.46,211.45,0.68]
[1756946491501,0.06,211.46,211.45,4.63846124]
[1756946492304,0.06,211.46,211.45,9.36771165]
[1756946492912,0.06,211.46,211.45,22.96330566]
[1756946494690,0.06,211.48,211.47,26.0]
[1756946494891,0.06,211.48,211.47,43.83837839]
[1756946495216,0.06,211.48,211.47,44.51837839]
[1756946496205,0.06,211.48,211.47,49.24718152]
[1756946500018,0.06,211.48,211.47,45.00439714]
[1756946500219,0.06,211.48,211.47,48.96285838]
[1756946502894,0.06,211.48,211.47,49.24718152]
[1756946503904,0.06,211.48,211.47,51.14188346]
[1756946506019,0.06,211.48,211.47,129.74188346]
[1756946508803,0.06,211.48,211.47,166.42188346]
[1756946509620,0.06,211.49,211.48,13.87991715]
[1756946509819,0.06,211.49,211.48,97.11837839]
[1756946510208,0.06,211.49,211.48,99.01281113]
[1756946510806,0.06,211.49,211.48,103.74139066]
[1756946512832,0.06,211.49,211.48,140.42139066]
[1756946514831,0.06,211.49,211.48,61.82139066]
[1756946515421,0.75,211.49,211.48,8.68704077]
[1756946515625,0.75,211.49,211.48,45.36704077]
[1756946516222,0.06,211.49,211.48,45.36704077]
[1756946516430,0.06,211.49,211.48,58.96263478]
[1756946518232,0.06,211.49,211.48,45.36704077]
[1756946524550,0.75,211.49,211.41,0.68]
[1756946524840,0.69,211.48,211.47,3.95846124]
[1756946526440,0.69,211.48,211.47,8.68726437]
[1756946526742,0.06,211.49,211.47,8.68726437]
[1756946526941,0.75,211.49,211.48,3.95846124]
[1756946528018,0.06,211.49,211.48,8.68704077]
[1756946528526,0.75,211.49,211.48,8.68704077]
[1756946535350,4.70846124,211.49,211.45,26.0]
[1756946535557,0.72,211.48,211.45,26.0]
[1756946535859,0.72,211.47,211.44,4.72947408]
[1756946536354,0.72,211.46,211.44,8.68793532]
[1756946538260,0.72,211.46,211.44,8.71793532]
[1756946540557,0.72,211.48,211.44,9.43793532]
[1756946541154,0.06,211.49,211.44,9.43793532]
[1756946541359,0.72,211.48,211.44,9.43793532]
[1756946541537,0.06,211.49,211.44,9.43793532]
[1756946541738,0.72,211.47,211.44,9.43793532]
[1756946542157,0.72,211.47,211.44,4.75947408]
[1756946542368,0.72,211.47,211.44,8.71793532]
[1756946542545,0.72,211.46,211.44,4.75947408]
[1756946542861,4.01846124,211.49,211.44,0.03]
[1756946543165,0.72,211.48,211.44,0.03]
[1756946544240,0.72,211.48,211.44,4.75946081]
[1756946544439,0.72,211.47,211.44,4.75946081]
[1756946547063,0.06,211.49,211.45,4.67846124]
[1756946547277,0.06,211.49,211.48,3.95846124]
[1756946547653,0.06,211.49,211.47,3.95846124]
[1756946548062,0.06,211.49,211.47,4.67846124]
[1756946548248,0.06,211.49,211.47,3.95846124]
[1756946548448,0.06,211.49,211.47,9.40716254]
[1756946548669,0.06,211.49,211.48,3.95846124]
[1756946549177,0.06,211.49,211.47,4.7287013]
[1756946549474,0.06,211.49,211.48,2.53123525]
[1756946549974,0.06,211.49,211.47,5.4487013]
[1756946549975,0.06,211.49,211.47,7.25993655]
[1756946551145,0.72,211.48,211.45,36.66]
[1756946551352,0.72,211.47,211.44,4.75943373]
[1756946551553,0.72,211.46,211.44,0.03]
[1756946552051,0.72,211.45,211.44,0.03]
[1756946566287,2.53123525,211.47,211.44,0.03]
[1756946566477,0.7,211.46,211.44,0.03]
[1756946567593,0.7,211.45,211.44,0.03]
[1756946568389,1.95568967,211.48,211.44,0.03]
[1756946568593,2.59123525,211.48,211.44,0.73]
[1756946568775,0.76,211.48,211.44,0.73]
[1756946568979,0.76,211.48,211.45,0.7]
[1756946570097,0.76,211.48,211.44,4.75933614]
[1756946570272,0.76,211.48,211.44,5.45933614]
[1756946571472,0.06,211.48,211.45,0.7]
[1756946571673,0.06,211.48,211.44,4.75933614]
[1756946571993,0.76,211.48,211.44,5.45933614]
[1756946572582,0.06,211.48,211.45,0.7]
[1756946572767,0.76,211.48,211.45,0.7]
[1756946574074,0.06,211.48,211.45,7.96037932]
[1756946574277,0.06,211.48,211.46,0.7]
[1756946575692,0.76,211.48,211.45,4.72914407]
[1756946575991,0.76,211.48,211.44,2.56123525]
[1756946575992,3.29123525,211.48,211.44,0.03]
[1756946576171,0.06,211.48,211.45,0.7]
[1756946577310,0.06,211.48,211.45,5.4291749]
[1756946577602,0.06,211.48,211.46,0.7]
[1756946578203,0.06,211.48,211.45,4.7291749]
[1756946578505,0.06,211.48,211.44,0.03]
[1756946578506,0.7,211.47,211.44,0.03]
[1756946578802,0.7,211.46,211.44,0.03]
[1756946579506,3.23123525,211.45,211.44,0.03]
[1756946581903,0.7,211.45,211.44,0.03]
[1756946582506,7.96048566,211.45,211.44,0.03]
[1756946583374,0.7,211.45,211.44,0.03]
[1756946583596,0.06,211.48,211.44,0.73]
[1756946583798,0.76,211.48,211.44,0.73]
[1756946583978,0.7,211.47,211.44,0.73]
[1756946584179,0.7,211.47,211.44,0.03]
[1756946584406,0.7,211.47,211.44,0.73]
[1756946585207,0.06,211.48,211.45,0.7]
[1756946585390,0.06,211.48,211.47,2.53123525]
[1756946585587,0.06,211.48,211.47,0.7]
[1756946585793,0.06,211.48,211.45,3.23123525]
[1756946586388,0.06,211.48,211.46,0.7]
[1756946588215,0.06,211.48,211.47,3.23123525]
[1756946588420,0.06,211.48,211.47,0.7]
[1756946590517,0.06,211.48,211.47,5.42880313]
[1756946596009,0.06,211.48,211.45,4.72925041]
[1756946596215,0.06,211.48,211.46,3.24123525]
[1756946597233,0.06,211.48,211.46,7.97020085]
[1756946600522,0.06,211.48,211.46,5.4389656]
[1756946600720,0.06,211.48,211.46,0.71]
[1756946600919,0.71,211.47,211.44,0.03]
[1756946601240,0.06,211.48,211.45,3.24123525]
[1756946601537,0.77,211.48,211.45,3.24123525]
[1756946601740,0.06,211.48,211.45,3.24123525]
[1756946601910,0.06,211.48,211.46,3.24123525]
[1756946602240,0.06,211.48,211.46,2.53123525]
[1756946602731,0.06,211.48,211.46,7.97006756]
[1756946603036,0.06,211.48,211.46,5.43883231]
[1756946603216,0.06,211.48,211.46,4.72883231]
[1756946603636,0.06,211.48,211.46,5.43883231]
[1756946603834,0.06,211.48,211.46,0.71]
[1756946604026,0.06,211.48,211.47,0.71]
[1756946604224,0.06,211.48,211.46,0.71]
[1756946604841,0.06,211.48,211.45,7.97035964]
[1756946605440,0.06,211.48,211.45,7.26035964]
[1756946605646,0.06,211.48,211.46,0.71]
[1756946607232,0.06,211.48,211.45,7.26035964]
[1756946607528,0.06,211.48,211.45,2.53123525]
[1756946607723,0.06,211.48,211.44,2.56123525]
[1756946608050,0.06,211.48,211.45,0.71]
[1756946609147,0.06,211.48,211.44,2.56123525]
[1756946609327,3.24123525,211.47,211.44,0.03]
[1756946609530,2.53123525,211.46,211.44,0.03]
[1756946609930,3.24123525,211.46,211.44,0.03]
[1756946610840,0.71,211.45,211.44,0.03]
[1756946612157,3.95775439,211.47,211.44,0.03]
[1756946612451,0.71,211.46,211.44,0.03]
[1756946612932,3.95775439,211.47,211.44,0.03]
[1756946613230,0.71,211.46,211.44,0.03]
[1756946613853,4.01775439,211.48,211.45,0.71]
[1756946614028,0.06,211.48,211.45,0.71]
[1756946614231,0.06,211.48,211.46,0.71]
[1756946614439,0.77,211.48,211.44,0.74]
[1756946615257,0.77,211.48,211.45,0.71]
[1756946615440,0.71,211.47,211.44,0.03]
[1756946616146,4.01775439,211.48,211.44,0.74]
[1756946616358,4.72775439,211.48,211.44,0.74]
[1756946616544,4.01775439,211.48,211.44,0.03]
[1756946617063,4.72775439,211.48,211.44,0.74]
[1756946617567,0.71,211.47,211.44,0.03]
[1756946617945,0.71,211.47,211.44,0.74]
[1756946618969,0.06,211.48,211.44,0.74]
[1756946619171,0.77,211.48,211.44,0.74]
[1756946619547,0.77,211.48,211.45,0.71]
[1756946619548,0.06,211.48,211.45,0.71]
[1756946620453,0.06,211.48,211.46,4.66775439]
[1756946621061,0.06,211.48,211.46,0.71]
[1756946624259,0.71,211.47,211.44,0.03]
[1756946624460,0.71,211.47,211.44,0.71]
[1756946624667,0.06,211.48,211.44,0.71]
[1756946624870,0.77,211.48,211.44,0.71]
[1756946626551,0.71,211.47,211.44,0.03]
[1756946626756,0.71,211.47,211.44,0.71]
[1756946630684,0.06,211.48,211.45,0.68]
[1756946630980,0.77,211.48,211.45,0.68]
[1756946631273,0.77,211.48,211.44,3.98775439]
[1756946631472,0.77,211.48,211.44,4.66775439]
[1756946631854,0.71,211.47,211.44,4.66775439]
[1756946632086,0.06,211.48,211.44,4.66775439]
[1756946632267,0.77,211.48,211.44,4.66775439]
[1756946632579,0.06,211.48,211.44,0.03]
[1756946632779,0.77,211.48,211.45,0.68]
[1756946632976,0.77,211.48,211.44,0.71]
[1756946633174,3.95775439,211.45,211.44,0.03]
[1756946633478,3.95775439,211.46,211.44,0.03]
[1756946633679,4.66775439,211.46,211.44,0.03]
[1756946633884,0.71,211.45,211.44,0.03]
[1756946635585,3.95775439,211.46,211.44,0.03]
[1756946635763,4.66775439,211.46,211.44,0.03]
[1756946635968,0.71,211.46,211.44,0.03]
[1756946636169,0.06,211.48,211.45,0.68]
[1756946636381,36.66,211.48,211.45,0.68]
[1756946636582,37.37,211.48,211.44,0.03]
[1756946636887,37.37,211.48,211.44,0.71]
[1756946637276,37.37,211.48,211.45,0.68]
[1756946637277,0.06,211.48,211.45,0.68]
[1756946638267,0.77,211.48,211.45,0.68]
[1756946639968,0.06,211.48,211.46,0.68]
[1756946640378,0.06,211.48,211.45,3.95775439]
[1756946640570,0.06,211.48,211.46,0.68]
[1756946640771,0.06,211.48,211.46,4.63775439]
[1756946640973,0.06,211.48,211.46,0.68]
[1756946641384,0.06,211.48,211.47,0.68]
[1756946642173,0.06,211.48,211.45,8.68699915]
[1756946642490,0.06,211.48,211.46,0.68]
[1756946643196,0.06,211.48,211.47,0.68]
[1756946644168,0.77,211.48,211.44,0.71]
[1756946644371,0.71,211.47,211.44,0.03]
[1756946644582,0.71,211.47,211.44,0.71]
[1756946644872,0.06,211.48,211.44,0.71]
[1756946645100,0.77,211.48,211.44,0.71]
[1756946645602,0.71,211.47,211.44,0.71]
[1756946646393,3.95775439,211.47,211.44,0.03]
[1756946646581,3.95775439,211.45,211.44,0.03]
[1756946647104,4.66775439,211.45,211.44,0.03]
[1756946648604,9.3970048,211.45,211.44,0.03]
[1756946648990,0.71,211.45,211.44,0.03]
[1756946649192,4.66775439,211.45,211.44,0.03]
[1756946654396,36.58,211.47,211.44,0.72]
[1756946655688,0.67,211.46,211.44,0.03]
[1756946657304,4.62775439,211.46,211.44,0.03]
[1756946658106,8.68682509,211.46,211.44,0.03]
[1756946658299,0.67,211.45,211.44,0.03]
[1756946659004,8.68682509,211.46,211.44,0.03]
[1756946659306,9.35682509,211.46,211.44,0.03]
[1756946660084,0.67,211.45,211.44,0.03]
[1756946660394,4.62775439,211.45,211.44,0.03]
[1756946661489,9.3570048,211.45,211.44,0.03]
[1756946662688,0.67,211.45,211.44,0.03]
[1756946662998,9.3570048,211.45,211.44,0.03]
[1756946663682,11.25278432,211.45,211.44,0.03]
[1756946666107,47.83278432,211.45,211.44,0.03]
[1756946668415,43.87502993,211.45,211.44,0.03]
[1756946668617,47.83278432,211.45,211.44,0.03]
[1756946668792,11.25278432,211.45,211.44,0.03]
[1756946668989,47.83278432,211.45,211.44,0.03]
[1756946670518,11.25278432,211.45,211.44,0.03]
[1756946670709,47.83278432,211.45,211.44,0.03]
[1756946672305,48.11710746,211.45,211.44,0.03]
[1756946673433,46.69385147,211.45,211.44,0.03]
[1756946673612,10.11385147,211.45,211.44,0.03]
[1756946674018,46.69385147,211.45,211.44,0.03]
[1756946675531,46.40952833,211.45,211.44,0.03]
[1756946677844,46.69385147,211.45,211.44,0.03]
[1756946680809,26.0,211.43,211.41,0.03]
[1756946681013,39.39882154,211.42,211.41,0.03]
[1756946681329,44.79874302,211.42,211.41,0.03]
[1756946681536,46.69524161,211.42,211.41,0.03]
[1756946683420,50.49429536,211.42,211.41,0.03]
[1756946686626,13.91429536,211.42,211.41,0.03]
[1756946686966,50.49429536,211.42,211.41,0.03]
[1756946690058,47.28979696,211.42,211.41,0.03]
[1756946690262,49.82429536,211.42,211.41,0.03]
[1756946690826,45.72091847,211.42,211.41,0.72]
[1756946691056,45.78091847,211.42,211.41,0.03]
[1756946691958,43.24642007,211.42,211.41,0.03]
[1756946692154,45.78091847,211.42,211.41,0.03]
[1756946692634,46.75524161,211.42,211.41,0.03]
[1756946694123,46.75524161,211.42,211.37,0.03]
[1756946694124,26.0,211.39,211.37,0.03]
[1756946694331,65.37882154,211.39,211.37,0.03]
[1756946694531,66.06882154,211.39,211.37,0.03]
[1756946694958,67.96549998,211.39,211.37,0.03]
[1756946695945,72.69609272,211.39,211.37,0.03]
[1756946698446,35.44609272,211.39,211.37,0.03]
[1756946698650,72.00609272,211.39,211.37,0.03]
[1756946700870,26.0,211.36,211.31,0.69]
[1756946701072,65.37882154,211.36,211.32,0.69]
[1756946701277,66.06882154,211.36,211.3,0.79]
[1756946701483,67.96585979,211.36,211.3,0.1]
[1756946701685,72.69712398,211.36,211.31,0.69]
[1756946701980,72.69712398,211.36,211.3,0.1]
[1756946702654,72.69712398,211.36,211.3,0.79]
[1756946703175,0.28432314,211.34,211.3,0.79]
[1756946703354,2.5344984,211.31,211.3,0.79]
[1756946703672,2.5344984,211.31,211.3,0.1]
[1756946703673,39.0944984,211.31,211.3,0.1]
[1756946703865,53.32363493,211.31,211.3,0.1]
[1756946704165,58.05601863,211.31,211.3,0.1]
[1756946704752,58.05601863,211.31,211.3,0.79]
[1756946705152,21.49601863,211.31,211.3,0.79]
[1756946705374,58.05601863,211.31,211.3,0.79]
[1756946708696,58.05601863,211.31,211.3,0.1]
[1756946709565,58.05601863,211.31,211.3,0.79]
[1756946709891,55.52152023,211.31,211.3,0.1]
[1756946710176,58.05601863,211.31,211.3,0.1]
[1756946710554,55.52152023,211.31,211.3,0.79]
[1756946710755,58.05601863,211.31,211.3,0.79]
[1756946711170,58.05601863,211.31,211.3,0.1]
[1756946712459,58.05601863,211.31,211.3,0.82]
[1756946714084,58.05601863,211.31,211.3,0.1]
[1756946714683,58.05601863,211.31,211.3,0.82]
[1756946715097,21.49601863,211.31,211.3,0.82]
[1756946715266,14.22913653,211.31,211.3,0.82]
[1756946715582,40.99144668,211.31,211.3,0.82]
[1756946716390,39.0944984,211.31,211.3,0.82]
[1756946716593,43.85803387,211.31,211.3,0.82]
[1756946716795,48.59041757,211.31,211.3,0.82]
[1756946717286,43.8268821,211.31,211.3,0.82]
[1756946717464,39.0944984,211.31,211.3,0.82]
[1756946717664,40.99144669,211.31,211.3,0.82]
[1756946717872,36.56,211.31,211.3,0.82]
[1756946719497,2.5344984,211.33,211.3,0.82]
[1756946719671,36.56,211.32,211.3,0.82]
[1756946721504,36.56,211.32,211.31,0.72]
[1756946722405,39.0944984,211.32,211.31,0.72]
[1756946723570,36.56,211.33,211.31,0.72]
[1756946724871,2.5344984,211.35,211.31,0.72]
[1756946725103,36.56,211.34,211.31,0.72]
[1756946727809,36.56,211.34,211.31,5.45232721]
[1756946728103,36.56,211.35,211.32,0.72]
[1756946729810,2.5344984,211.34,211.31,0.72]
[1756946730185,3.2444984,211.34,211.31,0.72]
[1756946730402,0.71,211.33,211.3,0.1]
[1756946730710,39.8044984,211.33,211.3,0.1]
[1756946731524,2.5344984,211.32,211.3,0.1]
[1756946731813,3.2444984,211.32,211.3,0.1]
[1756946733310,2.5344984,211.31,211.3,0.1]
[1756946733615,3.2444984,211.32,211.3,0.1]
[1756946733907,37.27,211.31,211.3,0.1]
[1756946734110,39.8044984,211.31,211.3,0.1]
[1756946734406,41.70162662,211.31,211.3,0.1]
[1756946735708,47.864201,211.31,211.3,0.1]
[1756946737282,11.304201,211.31,211.3,0.1]
[1756946737486,36.56,211.31,211.3,0.82]
[1756946737691,36.56,211.31,211.3,0.1]
[1756946738087,40.52468908,211.31,211.3,0.1]
[1756946738505,45.96707278,211.31,211.3,0.1]
[1756946740619,37.27,211.31,211.3,0.1]
[1756946740824,41.23468908,211.31,211.3,0.1]
[1756946741525,45.96707278,211.31,211.3,0.1]
[1756946741816,1.89694829,211.32,211.3,0.1]
[1756946741985,38.43694829,211.32,211.3,0.1]
[1756946742190,3.96468908,211.31,211.3,0.1]
[1756946743006,4.62468908,211.31,211.3,0.1]
[1756946744122,9.35707278,211.31,211.3,0.1]
[1756946744813,11.25438097,211.31,211.3,0.1]
[1756946746434,11.53870411,211.31,211.3,0.1]
[1756946748541,25.13429812,211.31,211.3,1e-08]
[1756946752620,61.69429812,211.31,211.3,1e-08]
[1756946755456,48.09870411,211.31,211.3,1e-08]
[1756946756651,61.69429812,211.31,211.3,1e-08]
[1756946760754,25.13429812,211.31,211.3,1e-08]
[1756946760953,61.69429812,211.31,211.3,1e-08]
[1756946764652,44.13401503,211.31,211.3,1e-08]
[1756946764843,61.69429812,211.31,211.3,1e-08]
[1756946770155,26.0,211.28,211.27,0.03]
[1756946770350,66.78901222,211.28,211.27,0.03]
[1756946770851,67.55983973,211.28,211.27,0.03]
[1756946771059,71.52452881,211.28,211.27,0.71]
[1756946771261,71.52452881,211.28,211.27,0.03]
[1756946773773,76.25758447,211.28,211.27,0.03]
[1756946775239,90.51317848,211.28,211.27,0.03]
[1756946775661,5.01782687,211.26,211.25,0.03]
[1756946775845,26.0,211.23,211.12,4.73646202]
[1756946776053,3.96468908,211.18,211.13,0.69]
[1756946776255,40.50468908,211.18,211.13,0.69]
[1756946777180,40.50468908,211.18,211.13,5.42640664]
[1756946777377,40.50468908,211.18,211.14,0.69]
[1756946777754,36.54,211.18,211.14,0.69]
[1756946778081,40.50468908,211.18,211.14,0.69]
[1756946778271,36.54,211.18,211.14,0.69]
[1756946778580,40.50468908,211.18,211.14,0.69]
[1756946780986,3.96468908,211.17,211.14,0.69]
[1756946783879,3.96468908,211.16,211.15,0.69]
[1756946784082,3.96468908,211.17,211.15,0.69]
[1756946784467,3.96468908,211.17,211.16,0.69]
[1756946785667,8.70021022,211.17,211.13,0.03]
[1756946785868,40.50468908,211.16,211.14,0.69]
[1756946786380,40.50468908,211.16,211.13,0.03]
[1756946786581,40.50468908,211.16,211.14,0.69]
[1756946786784,3.96468908,211.15,211.14,0.69]
[1756946788073,36.54,211.15,211.14,0.69]
[1756946788968,40.50468908,211.15,211.13,0.03]
[1756946789162,3.96468908,211.14,211.13,0.03]
[1756946789479,40.50468908,211.15,211.13,0.03]
[1756946789965,40.50468908,211.15,211.14,0.69]
[1756946790690,36.54,211.15,211.13,0.03]
[1756946790983,40.50468908,211.15,211.13,0.72]
[1756946791566,3.96468908,211.14,211.13,0.03]
[1756946791991,41.93603543,211.15,211.13,0.72]
[1756946791992,36.54,211.15,211.13,0.72]
[1756946792180,40.50468908,211.15,211.13,0.72]
[1756946792578,40.50468908,211.15,211.13,0.03]
[1756946792796,36.54,211.14,211.13,0.72]
[1756946793194,40.50468908,211.14,211.13,0.72]
[1756946793897,4.73682925,211.17,211.13,0.72]
[1756946794084,3.96468908,211.21,211.15,3.96468908]
[1756946794292,0.66,211.24,211.13,5.45641832]
[1756946794293,36.54,211.22,211.16,4.65468908]
[1756946794487,40.50468908,211.22,211.17,0.69]
[1756946794680,3.96468908,211.21,211.17,0.69]
[1756946794880,3.96468908,211.21,211.18,0.69]
[1756946795574,2.53899547,211.21,211.18,0.69]
[1756946795774,36.54,211.22,211.18,0.69]
[1756946795983,2.53899547,211.21,211.18,0.69]
[1756946796178,0.66,211.2,211.15,2.53899547]
[1756946796383,0.66,211.2,211.16,0.69]
[1756946796384,37.2,211.2,211.16,0.69]
[1756946796592,36.54,211.2,211.17,0.69]
[1756946796794,3.19899547,211.19,211.14,0.69]
[1756946797095,2.53899547,211.24,211.18,2.53899547]
[1756946797392,2.53899547,211.24,211.19,5.42506748]